Workbook

Sheet Sheet1
A1: 附件1
A2: 国家综合性消防救援队伍2025年度消防员招录计划
A3: 项目 省份 | B3: 招录计划（名） | F3: 消防救援队伍（名） | J3: 森林消防队伍（名）
B4: 总计 | C4: 高校应届 毕业生 | D4: 退役 士兵 | E4: 社会 青年 | F4: 小计 | G4: 高校应届 毕业生 | H4: 退役 士兵 | I4: 社会 青年 | J4: 小计 | K4: 高校应届 毕业生 | L4: 退役 士兵 | M4: 社会 青年
A5: 总计 | B5: =SUM(B6:B36) -> 12500 | C5: =SUM(C6:C36) -> 6250 | D5: =SUM(D6:D36) -> 4170 | E5: 2080 | F5: 10600 | G5: 5300 | H5: =SUM(H6:H36) -> 3535 | I5: 1765 | J5: =SUM(J6:J36) -> 1900 | K5: =SUM(K6:K36) -> 950 | L5: =SUM(L6:L36) -> 635 | M5: =SUM(M6:M36) -> 315
A6: 北京 | B6: =SUM(C6:E6) -> 450 | C6: =SUM(G6,K6) -> 225 | D6: =SUM(H6,L6) -> 150 | E6: =SUM(I6,M6) -> 75 | F6: =SUM(G6:I6) -> 360 | G6: 180 | H6: 120 | I6: 60 | J6: =SUM(K6:M6) -> 90 | K6: 45 | L6: 30 | M6: 15
A7: 天津 | B7: =SUM(C7:E7) -> 360 | C7: =SUM(G7,K7) -> 180 | D7: =SUM(H7,L7) -> 122 | E7: =SUM(I7,M7) -> 58 | F7: =SUM(G7:I7) -> 350 | G7: 175 | H7: 117 | I7: 58 | J7: =SUM(K7:M7) -> 10 | K7: 5 | L7: 5
A8: 河北 | B8: 490 | C8: 245 | D8: 163 | E8: 82 | F8: 430 | G8: 215 | H8: 143 | I8: 72 | J8: 60 | K8: 30 | L8: 20 | M8: 10
A9: 山西 | B9: 390 | C9: 195 | D9: 130 | E9: 65 | F9: 350 | G9: 175 | H9: 117 | I9: 58 | J9: 40 | K9: 20 | L9: 13 | M9: 7
A10: 内蒙古 | B10: 500 | C10: 250 | D10: 167 | E10: 83 | F10: 350 | G10: 175 | H10: 117 | I10: 58 | J10: 150 | K10: 75 | L10: 50 | M10: 25
A11: 辽宁 | B11: 240 | C11: 120 | D11: 80 | E11: 40 | F11: 210 | G11: 105 | H11: 70 | I11: 35 | J11: 30 | K11: 15 | L11: 10 | M11: 5
A12: 吉林 | B12: 300 | C12: 150 | D12: 100 | E12: 50 | F12: 150 | G12: 75 | H12: 50 | I12: 25 | J12: 150 | K12: 75 | L12: 50 | M12: 25
A13: 黑龙江 | B13: 640 | C13: 320 | D13: 213 | E13: 107 | F13: 510 | G13: 255 | H13: 170 | I13: 85 | J13: 130 | K13: 65 | L13: 43 | M13: 22
A14: 上海 | B14: 400 | C14: 200 | D14: 134 | E14: 66 | F14: 400 | G14: 200 | H14: 134 | I14: 66
A15: 江苏 | B15: 800 | C15: 400 | D15: 266 | E15: 134 | F15: 800 | G15: 400 | H15: 266 | I15: 134
A16: 浙江 | B16: 380 | C16: 190 | D16: 127 | E16: 63 | F16: 350 | G16: 175 | H16: 117 | I16: 58 | J16: =SUM(K16:M16) -> 30 | K16: 15 | L16: 10 | M16: 5
A17: 安徽 | B17: 440 | C17: 220 | D17: 147 | E17: 73 | F17: 390 | G17: 195 | H17: 130 | I17: 65 | J17: 50 | K17: 25 | L17: 17 | M17: 8
A18: 福建 | B18: 390 | C18: 195 | D18: 130 | E18: 65 | F18: 330 | G18: 165 | H18: 110 | I18: 55 | J18: 60 | K18: 30 | L18: 20 | M18: 10
A19: 江西 | B19: 320 | C19: 160 | D19: 107 | E19: 53 | F19: 260 | G19: 130 | H19: 87 | I19: 43 | J19: 60 | K19: 30 | L19: 20 | M19: 10 | N19: 福建森林
A20: 山东 | B20: 640 | C20: 320 | D20: 213 | E20: 107 | F20: 600 | G20: 300 | H20: 200 | I20: 100 | J20: 40 | K20: 20 | L20: 13 | M20: 7
A21: 河南 | B21: 360 | C21: 180 | D21: 120 | E21: 60 | F21: 300 | G21: 150 | H21: 100 | I21: 50 | J21: 60 | K21: 30 | L21: 20 | M21: 10
A22: 湖北 | B22: 460 | C22: 230 | D22: 153 | E22: 77 | F22: 400 | G22: 200 | H22: 133 | I22: 67 | J22: 60 | K22: 30 | L22: 20 | M22: 10
A23: 湖南 | B23: 450 | C23: 225 | D23: 150 | E23: 75 | F23: 400 | G23: 200 | H23: 133 | I23: 67 | J23: 50 | K23: 25 | L23: 17 | M23: 8 | N23: 四川森林
A24: 广东 | B24: 550 | C24: 275 | D24: 184 | E24: 91 | F24: 500 | G24: 250 | H24: 167 | I24: 83 | J24: 50 | K24: 25 | L24: 17 | M24: 8 | N24: 福建森林
A25: 广西 | B25: 400 | C25: 200 | D25: 134 | E25: 66 | F25: 320 | G25: 160 | H25: 107 | I25: 53 | J25: 80 | K25: 40 | L25: 27 | M25: 13 | N25: 云南森林
A26: 海南 | B26: 130 | C26: 65 | D26: 43 | E26: 22 | F26: 100 | G26: 50 | H26: 33 | I26: 17 | J26: 30 | K26: 15 | L26: 10 | M26: 5 | N26: 福建森林
A27: 重庆 | B27: 180 | C27: 90 | D27: 60 | E27: 30 | F27: 150 | G27: 75 | H27: 50 | I27: 25 | J27: 30 | K27: 15 | L27: 10 | M27: 5 | N27: 四川森林
A28: 四川 | B28: 700 | C28: 350 | D28: 233 | E28: 117 | F28: 550 | G28: 275 | H28: 183 | I28: 92 | J28: 150 | K28: 75 | L28: 50 | M28: 25
A29: 贵州 | B29: 340 | C29: 170 | D29: 113 | E29: 57 | F29: 300 | G29: 150 | H29: 100 | I29: 50 | J29: 40 | K29: 20 | L29: 13 | M29: 7 | N29: 云南森林
A30: 云南 | B30: 400 | C30: 200 | D30: 134 | E30: 66 | F30: 260 | G30: 130 | H30: 87 | I30: 43 | J30: 140 | K30: 70 | L30: 47 | M30: 23
A31: 西藏 | B31: 220 | C31: 110 | D31: 73 | E31: 37 | F31: 120 | G31: 60 | H31: 40 | I31: 20 | J31: 100 | K31: 50 | L31: 33 | M31: 17
A32: 陕西 | B32: 390 | C32: 195 | D32: 130 | E32: 65 | F32: 350 | G32: 175 | H32: 117 | I32: 58 | J32: 40 | K32: 20 | L32: 13 | M32: 7
A33: 甘肃 | B33: 450 | C33: 225 | D33: 150 | E33: 75 | F33: 400 | G33: 200 | H33: 133 | I33: 67 | J33: 50 | K33: 25 | L33: 17 | M33: 8
A34: 青海 | B34: 230 | C34: 115 | D34: 77 | E34: 38 | F34: 200 | G34: 100 | H34: 67 | I34: 33 | J34: 30 | K34: 15 | L34: 10 | M34: 5
A35: 宁夏 | B35: 80 | C35: 40 | D35: 27 | E35: 13 | F35: 60 | G35: 30 | H35: 20 | I35: 10 | J35: 20 | K35: 10 | L35: 7 | M35: 3
A36: 新疆 | B36: 420 | C36: 210 | D36: 140 | E36: 70 | F36: 350 | G36: 175 | H36: 117 | I36: 58 | J36: 70 | K36: 35 | L36: 23 | M36: 12
A37: 说明 | B37: 1.江苏省含为上海消防救援总队代招200名（高校应届毕业生100名、退役士兵66名、社会青年34名）。 2.全部为男性。
